bitfinex/quotes_ETHUSD_20240614
["timestamp","ask_amount","ask_price","bid_price","bid_amount"]
[1718347937123,5.987,3522.8,3521.0,1.54730118]
[1718347937124,2.2708,3522.8,3521.1,2.4526]
[1718347937457,1.673,3522.4,3521.2,0.11371774]
[1718347937653,1.673,3522.4,3521.3,0.05679147]
[1718347937654,0.07098934,3522.3,3521.3,0.05679147]
[1718347938057,0.07098934,3522.3,3521.4,0.05679286]
[1718347938299,2.427,3522.2,3521.4,0.05679286]
[1718347938421,0.07098938,3522.1,3521.4,0.05679286]
[1718347938847,0.07098938,3522.1,3521.2,0.0567915]
[1718347939059,0.07098938,3522.1,3521.5,0.05672604]
[1718347939218,0.07098938,3522.1,3521.1,3.88604514]
[1718347939568,0.07098942,3522.3,3521.2,0.11371805]
[1718347939761,0.07098936,3522.2,3521.2,0.11371805]
[1718347940440,0.07098936,3522.2,3521.2,0.05692652]
[1718347941946,0.07098936,3522.2,3521.3,0.05679177]
[1718347942173,1.74398936,3522.2,3521.1,3.88604514]
[1718347942490,26.57,3528.0,3520.1,1.673]
[1718347942491,1.673,3523.3,3521.6,2.463]
[1718347942698,0.07097241,3523.1,3521.7,3.19422307]
[1718347942990,0.07097241,3523.1,3521.8,0.05677793]
[1718347943150,0.07097241,3523.1,3521.9,1.43344514]
[1718347943351,0.07097241,3523.1,3522.0,0.05677792]
[1718347943550,0.48638965,3523.1,3522.0,0.11316989]
[1718347943750,0.41541724,3523.1,3522.0,0.11316989]
[1718347944209,0.48638964,3523.1,3522.1,1.43344514]
[1718347944389,0.48638964,3523.1,3522.2,2.43667534]
[1718347944390,0.0709724,3523.1,3522.2,2.43667534]
[1718347944687,0.07096918,3523.2,3522.3,1.49022048]
[1718347944888,0.07096555,3523.9,3522.4,4.1475]
[1718347945076,0.07096555,3523.9,3522.5,1.49021307]
[1718347945476,0.07096555,3523.9,3522.6,0.05599122]
[1718347945787,0.07096555,3523.9,3522.6,0.62536165]
[1718347945788,1.673,3523.7,3522.6,0.62536165]
[1718347945989,0.07095994,3523.6,3522.7,0.05676795]
[1718347946352,0.07095994,3523.6,3522.8,0.0555623]
[1718347948789,0.0709577,3524.1,3523.0,1.704]
[1718347948953,1.673,3524.5,3523.1,3.6936725]
[1718347949154,0.07094687,3524.4,3523.1,3.19280714]
[1718347950162,1.673,3524.1,3523.1,3.19280714]
[1718347950491,0.07094744,3524.0,3523.1,1.48880714]
[1718347953181,0.07094744,3524.0,3523.2,0.05675854]
[1718347953507,0.07094744,3524.0,3523.3,0.05523138]
[1718347954279,0.07094744,3524.0,3523.1,1.43344514]
[1718347954505,0.07094744,3524.0,3523.1,1.97843965]
[1718347954712,0.07094744,3524.0,3523.2,0.11205663]
[1718347954875,0.07094744,3524.0,3523.4,2.3933]
[1718347955084,3.0,3524.6,3523.5,3.13744514]
[1718347955276,0.07093973,3524.5,3523.5,1.48854302]
[1718347955473,0.2453337,3524.5,3523.5,1.48854302]
[1718347955708,0.2453337,3524.5,3523.5,1.43344514]
[1718347956676,0.07093895,3524.6,3523.6,0.05481986]
[1718347956882,0.07093895,3524.6,3523.6,1.488265]
[1718347957221,0.07093895,3524.6,3523.7,0.05675011]
[1718347957379,0.07093895,3524.6,3523.6,1.488265]
[1718347957580,0.07093895,3524.6,3523.7,0.05475312]
[1718347957800,0.27483162,3524.6,3523.7,0.05475312]
[1718347959382,1.673,3524.4,3523.7,0.05475312]
[1718347959695,0.07094732,3524.3,3523.4,2.3933]
[1718347959879,0.07094732,3524.3,3523.8,0.05468639]
[1718347960318,0.07094732,3524.3,3523.4,2.3933]
[1718347960521,0.07094732,3524.3,3523.9,0.05461965]
[1718347960731,0.22939473,3524.2,3523.4,2.3933]
[1718347960891,0.22939473,3524.2,3524.0,0.05455292]
[1718347960892,0.0709473,3524.1,3524.0,0.05455292]
[1718347961095,0.0709473,3524.1,3523.4,2.3933]
[1718347961414,0.0709473,3524.1,3524.0,0.05455292]
[1718347961612,0.0709473,3524.1,3523.4,2.3933]
[1718347961996,0.0709473,3524.3,3523.4,2.3933]
[1718347962192,0.0709473,3524.2,3523.5,0.05488661]
[1718347970990,0.696,3523.7,3523.5,0.05488661]
[1718347971604,0.0709473,3524.2,3523.5,0.05488661]
[1718347971809,0.696,3523.8,3523.5,0.11164137]
[1718347972518,0.696,3523.8,3523.5,0.58828953]
[1718347973417,0.696,3523.8,3523.5,0.58829017]
[1718347974022,0.696,3523.8,3523.5,0.58828996]
[1718347976188,0.696,3523.8,3523.5,0.05488661]
[1718347979423,0.696,3523.6,3523.5,0.05488661]
[1718347980248,0.696,3523.6,3523.5,0.05488951]
[1718347980648,0.696,3523.6,3523.3,2.3693]
[1718347980849,0.696,3523.6,3523.5,0.05488951]
[1718347981228,0.696,3523.6,3523.3,2.3693]
[1718347981427,0.696,3523.6,3523.4,0.05495626]
[1718347986476,3.07095343,3524.4,3523.4,0.05495626]
[1718347986688,0.696,3523.5,3523.4,0.05495626]
[1718347988726,0.07095316,3524.2,3523.4,0.05495626]
[1718347988929,0.696,3523.7,3523.4,0.05495626]
[1718347990137,3.0,3524.4,3523.4,0.11171519]
[1718347990436,0.696,3523.7,3523.4,0.11171519]
[1718347990656,0.696,3523.7,3523.5,0.24810152]
[1718347990841,0.696,3523.7,3523.6,0.05488353]
[1718347991162,0.696,3523.8,3523.5,0.24810152]
[1718347991327,3.0,3524.6,3523.5,0.24810152]
[1718347991328,2.4337,3525.1,3523.7,2.2617]
[1718347991530,2.4337,3525.1,3523.8,0.05674886]
[1718347991531,0.696,3524.4,3523.8,0.05674886]
[1718347991763,0.696,3524.4,3523.8,0.11149891]
[1718347992631,0.696,3524.2,3523.8,0.05475005]
[1718347994564,0.696,3524.2,3523.8,0.1114997]
[1718347994740,0.696,3524.2,3523.8,0.49216418]
[1718347994946,0.696,3524.2,3523.8,0.43541453]
[1718347995742,0.696,3524.2,3523.8,0.05475005]
[1718347996143,0.696,3524.0,3523.8,0.05475005]
[1718347996341,3.54337,3525.0,3523.8,0.05475005]
[1718347996538,0.696,3523.9,3523.8,0.05475005]
[1718347996733,0.696,3523.9,3523.7,2.2617]
[1718347996945,0.696,3523.9,3523.8,0.05463719]
[1718347997865,0.696,3524.1,3523.8,0.05463719]
[1718347998433,0.696,3523.9,3523.8,0.05463719]
[1718347998828,0.696,3523.9,3523.3,7.44]
[1718347999032,0.696,3523.4,3523.3,7.44]
[1718348001643,0.696,3523.4,3522.7,7.44]
[1718348001859,0.696,3523.1,3522.7,1.43344514]
[1718348002036,0.696,3522.9,3522.6,2.2731]
[1718348006177,0.696,3522.9,3522.7,0.05535125]
[1718348007178,0.696,3522.8,3522.7,0.05535125]
[1718348012488,0.696,3522.8,3522.7,0.05560305]
[1718348012653,0.696,3522.8,3522.2,9.7215]
[1718348012860,0.696,3522.6,3522.3,0.05587018]
[1718348013162,0.07096773,3523.2,3522.3,0.05587018]
[1718348013546,0.696,3522.7,3522.3,0.05587018]
[1718348019193,0.696,3522.5,3522.3,0.05587018]
[1718348025372,0.07097025,3523.2,3522.3,0.05587018]
[1718348025567,0.25129703,3523.1,3522.3,0.05587018]
[1718348025772,0.696,3522.5,3522.3,0.05587018]
[1718348032882,0.696,3522.5,3521.9,2.4382]
[1718348033077,0.696,3522.2,3522.0,0.0563716]
[1718348034687,0.696,3522.2,3522.0,0.0486916]
[1718348038102,0.696,3522.2,3521.4,11.5667]
[1718348038324,0.696,3521.8,3521.5,0.05646703]
[1718348038646,0.696,3521.8,3521.4,5.56014514]
[1718348038844,0.696,3521.8,3521.6,0.05644074]
[1718348039047,0.696,3521.8,3521.5,0.05650756]
[1718348039349,0.696,3521.8,3521.6,0.05647838]
[1718348039769,0.696,3521.8,3521.4,5.56014514]
[1718348039912,0.696,3521.8,3521.7,0.05641736]
[1718348040253,0.696,3521.8,3521.4,5.56014514]
[1718348040548,0.696,3521.8,3521.4,6.1416754]
[1718348040727,0.696,3521.8,3521.5,0.05655099]
[1718348040914,0.696,3521.8,3521.4,6.1416754]
[1718348041117,0.696,3521.8,3521.5,0.05655099]
[1718348041313,0.696,3521.8,3521.4,6.1416754]
[1718348041509,0.696,3521.8,3521.5,0.05655099]
[1718348041813,0.696,3521.8,3521.4,6.1416754]
[1718348042118,0.696,3521.8,3521.5,0.05655099]
[1718348042318,3.0,3522.8,3521.6,1.43344514]
[1718348042514,0.696,3522.0,3521.7,0.11319954]
[1718348042726,0.696,3522.0,3521.8,0.0567832]
[1718348043030,0.696,3522.0,3521.9,0.05628373]
[1718348044778,0.696,3522.0,3521.8,0.05678309]
[1718348044932,0.07097773,3522.7,3521.9,0.05628373]
[1718348045139,0.696,3522.3,3522.0,2.33847841]
[1718348045435,0.696,3522.3,3522.1,0.05615013]
[1718348047085,2.4024,3523.2,3522.1,0.11292905]
[1718348047265,0.696,3522.6,3522.1,0.11292905]
[1718348048061,2.4024,3523.2,3522.1,1.54637419]
[1718348048062,0.07097145,3523.1,3522.1,1.54637419]
[1718348048374,0.696,3522.7,3522.1,1.54637419]
[1718348048764,0.696,3522.2,3522.1,0.05615013]
[1718348052987,0.696,3522.2,3522.1,0.05613856]
[1718348053439,0.696,3522.2,3521.8,1.704]
[1718348053645,0.696,3522.2,3522.1,0.05613856]
[1718348053850,0.696,3522.2,3521.9,1.43344514]
[1718348054067,0.696,3522.2,3522.1,0.05613856]
[1718348054270,0.696,3522.2,3522.0,0.05620536]
[1718348054475,0.696,3522.2,3522.1,0.05613856]
[1718348055187,0.696,3522.2,3521.9,1.43344514]
[1718348055486,0.696,3522.2,3522.1,0.05613856]
[1718348055657,0.696,3522.2,3522.0,0.05620536]
[1718348055863,0.696,3522.2,3522.1,0.05613856]
[1718348056261,0.696,3522.2,3521.9,1.43344514]
[1718348056591,0.696,3522.2,3522.0,0.05620536]
[1718348057648,0.696,3522.2,3521.7,7.44]
[1718348057847,0.696,3522.2,3522.1,0.05613856]
[1718348058050,0.696,3522.2,3521.8,1.43344514]
[1718348058269,0.696,3522.2,3522.1,0.05613856]
[1718348058482,0.696,3522.2,3521.8,1.43344514]
[1718348058907,0.696,3522.2,3521.9,0.05627217]
[1718348060509,0.696,3522.2,3521.6,2.3545]
[1718348060710,0.696,3522.2,3521.7,0.0565998]
[1718348061476,0.696,3522.0,3521.7,0.0565998]
[1718348061909,0.696,3521.8,3521.4,7.44]
[1718348062087,0.696,3521.6,3521.5,0.05674213]
[1718348062282,0.696,3521.6,3521.0,2.4567]
[1718348062512,0.696,3521.6,3521.0,3.89014514]
[1718348062814,0.696,3521.6,3521.1,0.05700945]
[1718348063221,0.696,3521.4,3521.1,0.05700945]
[1718348064427,0.696,3521.2,3521.1,0.05700945]
[1718348064802,0.696,3521.2,3520.5,19.87]
[1718348065109,0.696,3521.2,3520.6,0.05679962]
[1718348065310,0.696,3521.2,3520.7,0.05730579]
[1718348066003,0.696,3521.2,3520.7,0.1141054]
[1718348066203,0.696,3521.2,3520.7,0.05679961]
[1718348066410,0.696,3521.2,3520.8,0.05723894]
[1718348067526,0.696,3521.2,3520.9,0.05717209]
[1718348067731,0.696,3521.0,3520.5,21.30344514]
[1718348067935,0.696,3521.0,3520.6,0.05737264]
[1718348068105,2.4809,3521.4,3520.6,0.05737264]
[1718348068442,0.696,3520.9,3520.7,0.0567996]
[1718348068751,0.696,3520.9,3520.8,0.05723894]
[1718348068896,0.696,3520.9,3520.5,21.30344514]
[1718348069097,0.696,3520.9,3520.6,0.05737264]
[1718348069993,0.696,3521.0,3520.7,0.05680031]
[1718348070433,0.696,3521.0,3520.8,0.05723894]
[1718348070834,0.696,3521.0,3520.5,1.43344514]
[1718348071035,0.696,3521.0,3520.9,0.05717209]
[1718348071231,0.696,3521.0,3520.5,1.43344514]
[1718348071439,0.696,3521.0,3520.9,0.05717209]
[1718348071936,0.696,3521.0,3520.5,1.43344514]
[1718348072138,0.696,3521.0,3520.6,0.05737264]
[1718348073417,0.696,3520.8,3520.6,0.05737264]
[1718348073847,0.696,3520.8,3520.3,0.12065]
[1718348074052,0.3156408,3520.8,3520.7,0.05756069]
[1718348074225,1.0116408,3520.8,3520.3,0.12065]
[1718348074426,0.3156408,3520.8,3520.7,0.05756069]
[1718348074630,0.3156408,3520.8,3520.3,0.12065]
[1718348074631,1.0116408,3520.8,3520.3,0.12065]
[1718348074826,2.3894,3521.1,3520.7,0.05756069]
[1718348075055,0.696,3520.8,3520.3,0.12065]
[1718348075226,0.696,3520.8,3520.3,0.17745642]
[1718348078470,0.696,3520.8,3520.3,0.12065]
[1718348078691,0.696,3520.8,3520.3,0.17745644]
[1718348079061,0.696,3520.8,3520.3,0.12065]
[1718348080180,0.696,3520.8,3520.3,0.17745643]
[1718348080359,0.696,3520.7,3520.3,0.17745643]
[1718348081082,0.696,3520.7,3520.4,0.05776126]
[1718348084985,0.07100805,3521.3,3520.4,0.05776126]
[1718348085192,0.696,3520.7,3520.4,0.05776126]
[1718348088091,0.07100818,3521.1,3520.4,0.05776126]
[1718348088291,0.25179081,3521.2,3520.5,0.05680646]
[1718348088491,0.696,3521.0,3520.5,0.05680646]
[1718348088651,0.696,3521.0,3520.6,0.05777244]
[1718348089376,0.25179081,3521.2,3520.6,0.05777244]
[1718348089586,0.696,3521.0,3520.7,2.4601]
[1718348089794,0.696,3521.0,3520.8,0.05763874]
[1718348093112,0.071002,3521.5,3520.8,0.05763874]
[1718348093113,0.07100198,3521.5,3520.8,0.05763874]
[1718348093310,0.696,3521.2,3520.8,0.05763874]
[1718348096808,0.07099851,3521.5,3520.8,0.05763874]
[1718348097105,0.696,3521.0,3520.3,4.22025]
[1718348097309,2.4196,3521.1,3520.9,0.05782971]
[1718348097514,0.93796,3521.0,3520.3,5.65369514]
[1718348097676,0.696,3520.8,3520.3,5.65369514]
[1718348099106,0.696,3520.8,3520.3,3.25809514]
[1718348101110,0.696,3520.8,3520.4,2.414]
[1718348104083,0.696,3521.0,3520.4,2.414]
[1718348105196,0.696,3520.9,3520.4,2.414]
[1718348106926,0.696,3520.9,3520.4,2.98120951]
[1718348107131,0.696,3521.1,3520.5,0.0568034]
[1718348107341,2.68415,3521.9,3520.6,1.43344514]
[1718348107498,3.0,3521.8,3520.7,4.20339397]
[1718348107697,0.696,3521.5,3520.8,1.49023911]
[1718348109199,0.696,3521.3,3520.8,1.43344514]
[1718348110031,0.696,3521.3,3520.4,2.3428]
[1718348110032,0.696,3520.9,3520.4,2.3428]
[1718348110920,0.696,3520.9,3520.5,0.05696188]
[1718348116971,0.696,3520.9,3520.5,0.11376567]
[1718348117252,0.696,3521.1,3520.5,0.11376567]
[1718348119367,3.07100469,3521.6,3520.7,2.4692]
[1718348119665,0.696,3521.3,3520.8,0.1135821]
[1718348120523,0.696,3521.3,3520.8,0.0567845]
[1718348121118,0.696,3521.3,3520.9,0.05679759]
[1718348121348,0.696,3521.3,3520.9,0.11349495]
[1718348123146,0.696,3521.3,3520.9,0.05669736]
[1718348123351,0.696,3521.1,3520.9,0.05669736]
[1718348123649,0.696,3521.1,3520.7,2.4692]
[1718348123947,0.696,3521.1,3521.0,0.05663052]
[1718348124150,0.696,3521.1,3520.7,2.4692]
[1718348124455,0.696,3521.1,3520.5,1.704]
[1718348124651,0.696,3521.1,3520.8,0.05674972]
[1718348124852,0.696,3521.1,3520.5,3.13744514]
[1718348125166,0.07099989,3521.4,3520.9,0.05668287]
[1718348125311,0.07099989,3521.4,3520.4,7.44]
[1718348125312,0.696,3520.9,3520.4,7.44]
[1718348125948,0.696,3520.9,3520.5,0.05695028]
[1718348126821,0.696,3520.6,3520.5,0.05695028]
[1718348127827,0.696,3520.6,3520.3,0.12065]
[1718348128027,0.07101824,3520.5,3520.4,0.05701715]
[1718348128238,0.696,3520.5,3520.3,0.12065]
[1718348128437,0.07101967,3520.4,3520.3,0.12065]
[1718348128865,0.07101967,3520.4,3520.3,0.17773401]
[1718348130872,0.07101967,3520.4,3520.3,0.12065]
[1718348133082,2.47541967,3520.4,3520.3,0.12065]
[1718348133268,2.79256164,3520.4,3520.3,0.12065]
[1718348134585,0.38816164,3520.4,3520.3,0.12065]
[1718348134791,0.76701967,3520.4,3520.3,0.12065]
[1718348135175,0.696,3520.4,3520.3,0.12065]
[1718348135692,0.696,3520.4,3520.3,0.17829641]
[1718348136087,0.696,3520.4,3520.3,0.12065]
[1718348136253,0.07101445,3520.9,3520.3,0.12065]
[1718348136454,0.696,3520.5,3520.3,0.12065]
[1718348136759,0.696,3520.5,3520.4,0.05757954]
[1718348136953,0.55311145,3520.8,3520.4,0.05757954]
[1718348137693,0.696,3520.6,3520.4,0.05757954]
[1718348142062,0.07101442,3520.5,3520.4,0.05757954]
[1718348144651,0.696,3520.6,3520.4,0.05757954]
[1718348144852,0.07101753,3520.5,3520.4,0.05757954]
[1718348148976,0.696,3520.6,3520.4,0.05757954]
[1718348151076,0.07101746,3520.5,3520.4,0.05757954]
[1718348155672,0.39559921,3520.5,3520.4,0.05757954]
[1718348155866,0.39559921,3520.5,3520.3,0.12065]
[1718348156066,0.696,3520.4,3520.3,0.12065]
[1718348156320,0.76702946,3520.4,3520.3,0.12065]
[1718348156880,0.07102946,3520.4,3520.3,0.12065]
[1718348157199,1.05447058,3520.4,3520.3,0.12065]
[1718348160377,0.76702946,3520.4,3520.3,0.12065]
[1718348163585,3.20322946,3520.4,3520.3,0.12065]
[1718348166125,6.20322946,3520.4,3520.3,0.12065]
[1718348170229,10.6276746,3520.4,3520.3,0.12065]
[1718348170435,11.1776746,3520.4,3519.5,2.00154959]
[1718348170732,0.696,3519.6,3519.5,2.00154959]
[1718348173998,3.07103518,3520.1,3519.5,2.00154959]
[1718348174328,0.696,3519.6,3519.5,2.00154959]
[1718348180918,0.55,3520.4,3519.5,2.00154959]
[1718348180919,2.4471,3520.8,3519.6,2.4197]
[1718348181170,0.07102294,3520.7,3519.7,2.50801835]
[1718348181321,0.696,3520.4,3519.7,2.56642567]
[1718348181821,0.696,3520.1,3519.7,2.50960732]
[1718348182023,0.696,3520.1,3519.8,0.47113119]
[1718348182418,0.696,3520.1,3519.9,0.05827354]
[1718348183054,0.696,3520.1,3519.7,2.4512]
[1718348183258,0.07102141,3520.9,3520.0,0.05799199]
[1718348183564,0.696,3520.1,3519.7,2.4512]
[1718348183888,0.696,3519.9,3519.8,0.46529046]
[1718348184528,0.07102305,3520.9,3519.8,0.46529046]
[1718348184750,0.696,3520.0,3519.7,2.4512]
[1718348185945,0.696,3520.0,3519.8,0.05812576]
[1718348186146,0.696,3520.0,3519.7,2.4512]
[1718348186347,0.696,3520.0,3519.9,0.05805888]
[1718348186660,0.696,3520.0,3519.7,2.4512]
[1718348186824,0.696,3520.0,3519.9,0.05805888]
[1718348187224,0.696,3520.0,3519.7,2.4512]
[1718348187441,0.696,3520.0,3519.9,0.05805888]
[1718348187648,0.696,3520.0,3519.8,0.05812576]
[1718348187849,0.696,3520.0,3519.9,0.05805888]
[1718348188236,0.696,3520.0,3519.7,2.4512]
[1718348188437,0.696,3520.0,3519.9,0.05805888]
[1718348188637,0.696,3520.0,3519.8,0.05812576]
[1718348188837,0.696,3520.0,3519.9,0.05805888]
[1718348189147,0.696,3520.0,3519.7,2.4512]
[1718348189351,0.696,3520.0,3519.9,0.05805888]
[1718348189560,0.696,3520.0,3519.7,2.4512]
[1718348189762,0.696,3520.0,3519.9,0.05805888]
[1718348189944,0.696,3520.0,3519.7,2.4512]
[1718348190258,0.696,3520.0,3519.9,0.05805888]
[1718348190558,0.696,3520.2,3519.9,0.05805888]
[1718348190863,0.696,3520.2,3519.7,2.4512]
[1718348191028,0.696,3520.2,3520.0,0.05799199]
[1718348191359,0.696,3520.2,3520.1,0.05792512]
[1718348191561,0.696,3520.2,3519.7,2.4512]
[1718348191764,0.696,3520.2,3520.1,0.05792512]
[1718348192056,0.696,3520.2,3519.7,2.4512]
[1718348192275,0.696,3520.2,3520.1,0.05792512]
[1718348192422,0.696,3520.2,3519.7,2.4512]
[1718348192624,0.696,3520.2,3520.1,0.05792512]
[1718348192825,0.696,3520.2,3519.7,2.4512]
[1718348193061,0.696,3520.2,3520.1,0.05792512]
[1718348193228,0.696,3520.2,3519.7,2.4512]
[1718348193423,0.696,3520.2,3520.1,0.05792512]
[1718348193647,0.696,3520.2,3519.7,2.4512]
[1718348193825,0.696,3520.2,3520.1,0.05792512]
[1718348194037,0.696,3520.2,3519.7,2.4512]
[1718348194541,0.696,3520.2,3519.8,0.05812576]
[1718348194764,0.696,3520.2,3519.7,2.4512]
[1718348195039,0.696,3520.2,3519.9,0.05805888]
[1718348195239,0.696,3520.2,3519.8,0.05812576]
[1718348195435,0.696,3520.2,3520.0,0.05799199]
[1718348195641,0.07102305,3520.9,3519.9,0.05805888]
[1718348195971,0.696,3520.3,3520.2,2.4361]
[1718348196436,0.696,3520.3,3520.2,2.49395824]
[1718348197341,0.82484682,3520.8,3520.2,2.49395824]
[1718348197536,0.696,3520.4,3520.2,2.49395824]
[1718348201392,0.696,3520.4,3520.2,0.05785824]
[1718348201597,0.696,3520.4,3519.9,2.4655]
[1718348201810,0.696,3520.4,3520.3,0.05775657]
[1718348202099,0.696,3520.4,3520.3,0.05770148]
[1718348202397,0.696,3520.4,3519.9,2.4655]
[1718348202573,0.696,3520.4,3520.3,0.05770148]
[1718348202769,1.07270129,3520.4,3519.9,2.4655]
[1718348202980,0.696,3520.4,3520.3,0.05770148]
[1718348203171,0.696,3520.4,3519.9,2.4655]
[1718348203485,0.696,3520.2,3519.9,2.4655]
[1718348205692,0.696,3520.2,3519.6,9.9199]
[1718348206992,0.696,3520.2,3519.6,2.4799]
[1718348211712,0.696,3520.4,3519.8,2.3253]
[1718348211915,0.696,3520.4,3519.9,0.05681368]
[1718348212820,2.381,3521.5,3520.0,2.3261]
[1718348213019,2.381,3521.5,3520.1,0.05681024]
[1718348213020,0.696,3520.7,3520.1,0.05681024]
[1718348213191,0.6091128,3521.4,3520.1,0.05681024]
[1718348213391,0.6091128,3521.4,3520.2,2.271]
[1718348213625,0.696,3520.8,3520.2,2.271]
[1718348215925,0.696,3520.8,3520.3,0.05770148]
[1718348216083,0.696,3520.6,3520.3,0.05770148]
[1718348219222,0.696,3520.4,3520.3,0.05770148]
[1718348220028,0.696,3520.4,3519.9,2.3292]
[1718348220191,0.696,3520.2,3519.9,2.3292]
[1718348221010,0.07102041,3520.7,3519.9,2.3292]
[1718348221295,0.696,3520.5,3519.9,2.3292]
[1718348221801,0.696,3520.5,3519.9,3.30612]
[1718348222011,0.07102041,3520.7,3519.9,3.30612]
[1718348222196,0.07101571,3521.0,3520.0,0.05681257]
[1718348222792,3.0,3521.1,3520.1,2.4532]
[1718348223129,0.696,3520.7,3520.2,0.05680662]
[1718348224523,0.07100835,3521.2,3520.2,0.05680662]
[1718348224726,0.696,3520.8,3520.2,0.05680662]
[1718348226651,0.07100835,3521.2,3520.2,0.05680662]
[1718348226965,0.696,3520.8,3520.2,0.05680662]
[1718348227165,0.696,3520.8,3520.2,0.51256111]
[1718348227370,0.696,3520.8,3520.3,0.05680662]
[1718348227771,0.07100835,3521.2,3520.3,0.05680662]
[1718348227987,0.696,3520.8,3520.3,0.05680662]
[1718348228840,0.07100835,3521.2,3520.3,0.05680662]
[1718348229067,0.696,3520.8,3520.3,0.05680662]
[1718348229463,0.71045031,3521.2,3520.3,0.05680662]
[1718348229637,0.696,3520.7,3520.3,0.05680662]
[1718348229837,0.71045031,3521.2,3520.4,2.3672]
[1718348229838,0.07100835,3521.2,3520.4,2.3672]
[1718348230043,0.696,3521.0,3520.4,2.3672]
[1718348230240,0.696,3521.0,3520.4,2.66532931]
[1718348230963,3.07100829,3521.6,3520.5,0.05548734]
[1718348231168,0.07100829,3521.6,3520.5,0.05548734]
[1718348231354,0.696,3521.1,3520.5,0.05548734]
[1718348232064,0.07100829,3521.6,3520.5,0.11229268]
[1718348232257,0.696,3521.2,3520.5,0.11229268]
[1718348237077,0.07100441,3521.4,3520.5,0.11229268]
[1718348237281,0.696,3521.2,3520.5,0.11229268]
[1718348238660,0.07100441,3521.4,3520.5,0.11229268]
[1718348238849,0.696,3521.2,3520.5,0.11229268]
[1718348241254,0.696,3521.2,3520.6,2.3578]
[1718348241589,0.696,3521.2,3520.7,0.0551768]
[1718348241897,0.696,3521.1,3520.7,0.0551768]
[1718348242543,0.07100364,3521.4,3520.7,0.0551768]
[1718348242753,0.696,3521.2,3520.7,0.0551768]
[1718348243894,3.0,3521.6,3520.8,2.4058]
[1718348244096,0.696,3521.4,3520.8,2.4058]
[1718348244411,0.696,3521.4,3520.9,0.0550431]
[1718348245104,0.696,3521.4,3520.9,0.11184109]
[1718348245304,2.3407,3522.6,3521.1,2.2831]
[1718348245464,0.696,3521.9,3521.2,0.05678835]
[1718348245795,0.696,3521.9,3521.3,0.05678835]
[1718348245995,0.696,3521.9,3521.3,0.11138438]
[1718348251574,0.696,3521.9,3521.3,0.05459603]
[1718348251769,0.696,3521.9,3521.4,0.0567884]
[1718348251972,0.696,3521.9,3521.4,0.0543495]
[1718348252181,0.696,3521.9,3521.4,0.05678841]
[1718348252584,0.696,3521.9,3521.5,0.05428268]
[1718348252784,0.696,3521.9,3521.4,0.05678841]
[1718348252985,0.696,3521.9,3521.6,0.05421586]
[1718348253180,0.696,3521.9,3521.4,0.05678841]
[1718348253401,0.696,3521.9,3521.7,0.05414904]
[1718348253672,0.696,3521.9,3521.2,0.05678845]
[1718348253895,0.696,3521.9,3521.3,0.05678845]
[1718348254103,0.696,3521.9,3521.3,0.11120478]
[1718348255105,3.07098544,3522.5,3521.3,0.11120478]
[1718348255406,0.696,3521.7,3521.3,0.05441633]
[1718348255598,0.696,3521.7,3521.1,3.71654514]
[1718348255904,0.696,3521.7,3521.4,0.0543495]
[1718348256111,0.696,3521.7,3521.2,0.57382295]
[1718348256412,0.696,3521.7,3521.3,0.05678881]
[1718348256591,0.696,3521.7,3521.3,0.11120514]
[1718348256791,0.696,3521.5,3521.3,0.05441633]
[1718348257026,0.696,3521.5,3521.1,2.2831]
[1718348257328,0.696,3521.5,3521.4,0.0543495]
[1718348257476,0.696,3521.5,3521.1,2.2831]
[1718348257677,0.07099488,3521.9,3521.1,2.2831]
[1718348257678,0.07099488,3521.9,3521.4,0.0543495]
[1718348257919,0.696,3521.5,3521.1,2.2831]
[1718348258216,0.696,3521.5,3521.2,0.05311712]
[1718348259477,0.696,3521.3,3521.2,0.05311712]
[1718348260315,0.696,3521.3,3520.7,2.3165]
[1718348260471,0.696,3521.1,3520.7,2.3165]
[1718348260679,0.696,3521.1,3520.8,0.05338449]
[1718348269318,0.07100292,3521.4,3520.8,0.05338449]
[1718348269517,0.696,3521.2,3520.8,0.05338449]
[1718348276550,2.62166949,3521.8,3520.8,0.11018672]
[1718348276823,0.696,3521.4,3520.8,0.11018672]
[1718348280717,0.696,3521.4,3520.8,0.05338449]
[1718348280923,0.696,3521.2,3520.8,0.05338449]
[1718348282438,0.696,3521.2,3520.8,0.1101838]
[1718348283744,0.696,3521.2,3520.8,0.05338449]
[1718348284457,0.696,3521.0,3520.8,0.05338449]
[1718348284663,0.696,3520.9,3520.8,0.05338449]
[1718348286661,0.696,3520.9,3520.3,9.7111]
[1718348286845,2.33810309,3521.2,3520.8,0.05116045]
[1718348287020,0.696,3520.9,3520.3,9.7111]
[1718348288126,2.33810309,3521.2,3520.3,9.7111]
[1718348288466,0.696,3520.8,3520.3,9.7111]
[1718348288768,0.668,3520.8,3520.3,9.7111]
[1718348289066,0.668,3520.8,3520.3,2.2711]
[1718348289426,0.526,3520.8,3520.3,2.2711]
[1718348290963,0.526,3520.8,3520.4,0.05142788]
[1718348291264,2.33810309,3521.2,3520.4,0.28368067]
[1718348291430,0.696,3520.8,3520.4,0.28368067]
[1718348294961,0.07100309,3521.2,3520.4,0.28368067]
[1718348295164,0.696,3520.8,3520.4,0.28368067]
[1718348295361,0.696,3520.8,3520.5,0.25547807]
[1718348295761,0.696,3520.8,3520.6,0.05129416]
[1718348296165,0.696,3520.8,3520.5,0.25547807]
[1718348296471,0.696,3520.8,3520.6,0.05129416]
[1718348296870,0.696,3520.8,3520.3,2.2711]